fUST/lending_fUST_20260124
["ID","MTS","AMOUNT","RATE_DAILY","PERIOD"]
[403144998,1769201440071,-1155.38515731,0.00018257,7]
[403144999,1769201440080,-3442.24,0.00018266,3]
[403145000,1769201440089,-163.11412483,0.00018326,2]
[403145001,1769201440099,-310.651211,0.00018359,2]
[403145002,1769201440108,-310.651211,0.00018359,2]
[403145003,1769201440117,-310.651211,0.00018359,2]
[403145004,1769201440127,-310.65121,0.00018359,2]
[403145005,1769201440136,-1699.8,0.0001839,3]
[403145006,1769201440145,-849.9,0.0001839,3]
[403145007,1769201440154,-424.95,0.0001839,3]
[403145008,1769201440164,-212.47,0.0001839,3]
[403145009,1769201440173,-637.46,0.0001839,3]
[403145010,1769201440182,-99908.22393451,0.000184,2]
[403145011,1769201440192,-550.10610807,0.00018426,7]
[403145012,1769201440201,-411.50235455,0.00018499,2]
[403145013,1769201440211,-3998.11959787,0.000185,7]
[403145014,1769201440220,-151.0,0.00018566,2]
[403145015,1769201440229,-151.0,0.00018566,2]
[403145016,1769201440238,-151.0,0.00018566,2]
[403145017,1769201440247,-151.0,0.00018566,2]
[403145018,1769201440256,-151.0,0.00018566,2]
[403145020,1769201440266,-151.0,0.00018566,2]
[403145022,1769201440275,-206.88706778,0.00018566,2]
[403145023,1769201440284,-151.0,0.00018566,2]
[403145024,1769201440293,-151.0,0.00018566,2]
[403145025,1769201440303,-514.84070869,0.00018566,2]
[403145026,1769201440312,-151.0,0.00018566,2]
[403145027,1769201440321,-151.0,0.00018566,2]
[403145028,1769201440331,-151.0,0.00018566,2]
[403145029,1769201440340,-151.0,0.00018566,2]
[403145030,1769201440350,-151.0,0.00018566,2]
[403145031,1769201440359,-777.97675335,0.00018566,2]
[403145032,1769201440368,-250.0,0.00018566,2]
[403145033,1769201440377,-187.78006525,0.00018566,2]
[403145034,1769201440386,-151.0,0.00018566,2]
[403145035,1769201440396,-194.72792766,0.00018566,2]
[403145036,1769201440405,-250.0,0.00018566,2]
[403145037,1769201440414,-151.0,0.00018566,2]
[403145039,1769201440423,-151.0,0.00018566,2]
[403145041,1769201440432,-201.93286099,0.00018566,2]
[403145042,1769201440442,-151.0,0.00018566,2]
[403145044,1769201440451,-250.0,0.00018566,2]
[403145046,1769201440461,-151.0,0.00018566,2]
[403145048,1769201440473,-209.40437684,0.00018566,2]
[403145050,1769201440482,-151.0,0.00018566,2]
[403145052,1769201440491,-250.0,0.00018566,2]
[403145054,1769201440501,-151.0,0.00018566,2]
[403145056,1769201440511,-151.0,0.00018566,2]
[403145068,1769201440610,-151.0,0.00018566,2]
[403145070,1769201440631,-250.0,0.00018566,2]
[403145072,1769201440640,-217.15233878,0.00018566,2]
[403145074,1769201440649,-151.0,0.00018566,2]
[403145076,1769201440658,-151.0,0.00018566,2]
[403145078,1769201440667,-151.0,0.00018566,2]
[403145080,1769201440676,-250.0,0.00018566,2]
[403145082,1769201440685,-225.18697532,0.00018566,2]
[403145084,1769201440694,-151.0,0.00018566,2]
[403145086,1769201440703,-151.0,0.00018566,2]
[403145088,1769201440712,-250.0,0.00018566,2]
[403145090,1769201440721,-233.51889341,0.00018566,2]
[403145092,1769201440730,-151.0,0.00018566,2]
[403145094,1769201440739,-151.0,0.00018566,2]
[403145096,1769201440748,-250.0,0.00018566,2]
[403145098,1769201440757,-242.15909246,0.00018566,2]
[403145100,1769201440766,-151.0,0.00018566,2]
[403145102,1769201440775,-621.78829552,0.00018566,2]
[403145104,1769201440784,-151.0,0.00018566,2]
[403145105,1769201440794,-251.11897888,0.00018566,2]
[403145107,1769201440803,-151.0,0.00018566,2]
[403145110,1769201440812,-151.0,0.00018566,2]
[403145112,1769201440822,-260.4103811,0.00018566,2]
[403145113,1769201440830,-151.0,0.00018566,2]
[403145115,1769201440839,-151.0,0.00018566,2]
[403145117,1769201440848,-151.0,0.00018566,2]
[403145119,1769201440857,-270.0455652,0.00018566,2]
[403145121,1769201440866,-151.0,0.00018566,2]
[403145123,1769201440875,-280.03725112,0.00018566,2]
[403145125,1769201440884,-250.0,0.00018566,2]
[403145127,1769201440895,-290.39862941,0.00018566,2]
[403145129,1769201440904,-250.0,0.00018566,2]
[403145131,1769201440913,-301.1433787,0.00018566,2]
[403145133,1769201440922,-2487.15318209,0.00018566,2]
[403145135,1769201440931,-250.0,0.00018566,2]
[403145137,1769201440940,-250.0,0.00018566,2]
[403145139,1769201440951,-250.0,0.00018566,2]
[403145141,1769201440960,-250.0,0.00018566,2]
[403145143,1769201440969,-500.0,0.00018566,2]
[403145145,1769201440978,-500.0,0.00018566,2]
[403145147,1769201440987,-500.0,0.00018566,2]
[403145148,1769201440996,-500.0,0.00018566,2]
[403145150,1769201441006,-500.0,0.00018566,2]
[403145152,1769201441015,-500.0,0.00018566,2]
[403145155,1769201441024,-500.0,0.00018566,2]
[403145156,1769201441033,-500.0,0.00018566,2]
[403145158,1769201441043,-2000.0,0.00018566,2]
[403145160,1769201441052,-500.0,0.00018566,2]
[403145162,1769201441063,-1507.19234385,0.00018566,2]
[403145165,1769201441072,-500.0,0.00018566,2]
[403145166,1769201441081,-500.0,0.00018566,2]
[403145169,1769201441091,-500.0,0.00018566,2]
[403145170,1769201441100,-500.0,0.00018566,2]
[403145172,1769201441110,-500.0,0.00018566,2]
[403145174,1769201441120,-151.0,0.000186,2]
[403145176,1769201441129,-3442.24,0.0001869,3]
[403145178,1769201441138,-823.0,0.00018715,2]
[403145180,1769201441147,-151.0,0.000189,2]
[403145182,1769201441156,-864.0,0.00018929,2]
[403145184,1769201441165,-309.0,0.00018971,5]
[403145186,1769201441174,-350.0,0.00018971,5]
[403145188,1769201441183,-200.0,0.00018989,2]
[403145190,1769201441192,-100000.0,0.0001899,2]
[403145192,1769201441201,-282.3,0.00019012,2]
[403145194,1769201441210,-178.71,0.00019012,2]
[403145196,1769201441218,-533.88981491,0.00019114,2]
[403145198,1769201441227,-513.99977405,0.00019114,2]
[403145200,1769201441236,-2055.99909623,0.00019114,2]
[403145202,1769201441245,-264.0,0.00019145,2]
[403145204,1769201441254,-151.0,0.00019178,2]
[403145206,1769201441263,-151.0,0.00019178,2]
[403145208,1769201441272,-151.0,0.00019178,2]
[403145210,1769201441282,-151.0,0.00019178,2]
[403145212,1769201441290,-151.0,0.00019178,2]
[403145213,1769201441299,-151.0,0.00019178,2]
[403145215,1769201441312,-151.0,0.00019178,2]
[403145217,1769201441321,-151.0,0.00019178,2]
[403145219,1769201441330,-229.625904,0.00019178,2]
[403145221,1769201441339,-152.025561,0.00019178,2]
[403145223,1769201441348,-151.0,0.00019178,2]
[403145225,1769201441358,-151.0,0.00019178,2]
[403145227,1769201441367,-151.0,0.00019178,2]
[403145229,1769201441376,-151.0,0.00019178,2]
[403145231,1769201441386,-151.0,0.00019178,2]
[403145233,1769201441395,-151.0,0.00019178,2]
[403145235,1769201441404,-151.0,0.00019178,2]
[403145237,1769201441413,-164.868988,0.00019178,2]
[403145239,1769201441422,-161.138998,0.00019178,2]
[403145241,1769201441431,-161.138998,0.00019178,2]
[403145243,1769201441440,-161.138998,0.00019178,2]
[403145245,1769201441450,-161.138998,0.00019178,2]
[403145247,1769201441460,-161.138998,0.00019178,2]
[403145249,1769201441469,-161.138998,0.00019178,2]
[403145251,1769201441480,-161.138998,0.00019178,2]
[403145253,1769201441490,-161.138998,0.00019178,2]
[403145255,1769201441500,-161.138998,0.00019178,2]
[403145257,1769201441508,-161.138998,0.00019178,2]
[403145259,1769201441518,-161.138998,0.00019178,2]
[403145261,1769201441527,-161.138998,0.00019178,2]
[403145263,1769201441536,-161.138998,0.00019178,2]
[403145264,1769201441546,-161.138998,0.00019178,2]
[403145266,1769201441556,-161.138998,0.00019178,2]
[403145268,1769201441565,-161.138998,0.00019178,2]
[403145270,1769201441574,-161.138998,0.00019178,2]
[403145272,1769201441583,-161.138998,0.00019178,2]
[403145274,1769201441592,-161.138998,0.00019178,2]
[403145277,1769201441601,-161.139001,0.00019178,2]
[403145278,1769201441611,-151.0,0.00019178,2]
[403145281,1769201441620,-151.0,0.00019178,2]
[403145282,1769201441629,-151.0,0.00019178,2]
[403145284,1769201441639,-151.0,0.00019178,2]
[403145287,1769201441648,-206.534673,0.00019178,2]
[403145288,1769201441657,-206.534673,0.00019178,2]
[403145290,1769201441666,-206.534673,0.00019178,2]
[403145292,1769201441675,-206.534673,0.00019178,2]
[403145294,1769201441685,-151.0,0.00019178,2]
[403145296,1769201441694,-206.534673,0.00019178,2]
[403145298,1769201441703,-151.0,0.00019178,2]
[403145300,1769201441712,-206.534673,0.00019178,2]
[403145302,1769201441721,-206.534673,0.00019178,2]
[403145304,1769201441730,-206.534673,0.00019178,2]
[403145306,1769201441739,-206.534673,0.00019178,2]
[403145308,1769201441748,-206.534673,0.00019178,2]
[403145310,1769201441756,-206.534673,0.00019178,2]
[403145312,1769201441766,-151.0,0.00019178,2]
[403145314,1769201441775,-206.534673,0.00019178,2]
[403145316,1769201441783,-151.0,0.00019178,2]
[403145318,1769201441792,-206.534673,0.00019178,2]
[403145320,1769201441802,-151.0,0.00019178,2]
[403145322,1769201441811,-206.534673,0.00019178,2]
[403145324,1769201441821,-151.0,0.00019178,2]
[403145326,1769201441830,-206.534673,0.00019178,2]
[403145328,1769201441839,-263.748101,0.00019178,2]
[403145330,1769201441850,-206.534673,0.00019178,2]
[403145332,1769201441859,-206.534673,0.00019178,2]
[403145334,1769201441868,-206.534673,0.00019178,2]
[403145336,1769201441877,-206.534673,0.00019178,2]
[403145338,1769201441887,-206.534676,0.00019178,2]
[403145341,1769201441896,-151.0,0.00019178,2]
[403145342,1769201441905,-152.979673,0.00019178,2]
[403145345,1769201441914,-151.0,0.00019178,2]
[403145346,1769201441924,-151.0,0.00019178,2]
[403145349,1769201441935,-151.0,0.00019178,2]
[403145351,1769201441944,-151.0,0.00019178,2]
[403145353,1769201441953,-151.0,0.00019178,2]
[403145354,1769201441963,-151.0,0.00019178,2]
[403145357,1769201441972,-298.175701,0.00019178,2]
[403145359,1769201441983,-202.156906,0.00019178,2]
[403145360,1769201441991,-202.156906,0.00019178,2]
[403145363,1769201442001,-202.156906,0.00019178,2]
[403145365,1769201442011,-151.0,0.00019178,2]
[403145367,1769201442020,-151.0,0.00019178,2]
[403145369,1769201442031,-202.156906,0.00019178,2]
[403145371,1769201442041,-202.156906,0.00019178,2]
[403145373,1769201442050,-202.156906,0.00019178,2]
[403145375,1769201442059,-202.156906,0.00019178,2]
[403145377,1769201442069,-202.156906,0.00019178,2]
[403145379,1769201442077,-202.156906,0.00019178,2]
[403145381,1769201442087,-202.156906,0.00019178,2]
[403145383,1769201442095,-202.156906,0.00019178,2]
[403145385,1769201442104,-202.156906,0.00019178,2]
[403145387,1769201442113,-202.156906,0.00019178,2]
[403145389,1769201442123,-202.156906,0.00019178,2]
[403145391,1769201442132,-202.156906,0.00019178,2]
[403145393,1769201442142,-202.156906,0.00019178,2]
[403145395,1769201442151,-202.156906,0.00019178,2]
[403145397,1769201442161,-202.156906,0.00019178,2]
[403145399,1769201442170,-202.156906,0.00019178,2]
[403145401,1769201442179,-202.156906,0.00019178,2]
[403145403,1769201442188,-151.0,0.00019178,2]
[403145415,1769201442198,-151.0,0.00019178,2]
[403145418,1769201442305,-151.0,0.00019178,2]
[403145420,1769201442314,-151.0,0.00019178,2]
[403145422,1769201442324,-154.392256,0.00019178,2]
[403145424,1769201442333,-151.0,0.00019178,2]
[403145426,1769201442342,-151.0,0.00019178,2]
[403145428,1769201442351,-151.0,0.00019178,2]
[403145430,1769201442360,-151.0,0.00019178,2]
[403145432,1769201442369,-151.0,0.00019178,2]
[403145434,1769201442377,-151.0,0.00019178,2]
[403145436,1769201442388,-151.0,0.00019178,2]
[403145438,1769201442397,-151.0,0.00019178,2]
[403145440,1769201442407,-151.0,0.00019178,2]
[403145442,1769201442416,-151.0,0.00019178,2]
[403145444,1769201442425,-151.0,0.00019178,2]
[403145446,1769201442434,-151.0,0.00019178,2]
[403145448,1769201442444,-151.0,0.00019178,2]
[403145450,1769201442453,-209.272185,0.00019178,2]
[403145452,1769201442463,-151.0,0.00019178,2]
[403145454,1769201442477,-151.0,0.00019178,2]
[403145456,1769201442486,-284.185816,0.00019178,2]
[403145458,1769201442496,-151.0,0.00019178,2]
[403145461,1769201442505,-151.0,0.00019178,2]
[403145463,1769201442517,-151.0,0.00019178,2]
[403145465,1769201442527,-151.0,0.00019178,2]
[403145467,1769201442536,-151.0,0.00019178,2]
[403145469,1769201442546,-151.0,0.00019178,2]
[403145471,1769201442555,-151.0,0.00019178,2]
[403145473,1769201442563,-151.0,0.00019178,2]
[403145475,1769201442572,-151.0,0.00019178,2]
[403145477,1769201442581,-151.0,0.00019178,2]
[403145479,1769201442591,-151.0,0.00019178,2]
[403145481,1769201442599,-151.0,0.00019178,2]
[403145483,1769201442608,-151.0,0.00019178,2]
[403145485,1769201442617,-151.0,0.00019178,2]
[403145487,1769201442627,-151.0,0.00019178,2]
[403145488,1769201442636,-151.0,0.00019178,2]
[403145491,1769201442647,-260.203914,0.00019178,2]
[403145492,1769201442656,-151.0,0.00019178,2]
[403145494,1769201442665,-151.0,0.00019178,2]
[403145496,1769201442675,-151.0,0.00019178,2]
[403145499,1769201442683,-206.821888,0.00019178,2]
[403145500,1769201442692,-154.396871,0.00019178,2]
[403145502,1769201442701,-154.396871,0.00019178,2]
[403145504,1769201442711,-154.396871,0.00019178,2]
[403145506,1769201442720,-154.396871,0.00019178,2]
[403145508,1769201442728,-154.396871,0.00019178,2]
[403145511,1769201442738,-154.396871,0.00019178,2]
[403145512,1769201442747,-154.396871,0.00019178,2]
[403145514,1769201442755,-154.396871,0.00019178,2]
[403145516,1769201442764,-154.396871,0.00019178,2]
[403145518,1769201442773,-154.396871,0.00019178,2]
[403145520,1769201442782,-154.396871,0.00019178,2]
[403145522,1769201442791,-154.396871,0.00019178,2]
[403145524,1769201442800,-154.396871,0.00019178,2]
[403145527,1769201442809,-154.396871,0.00019178,2]
[403145528,1769201442818,-154.396871,0.00019178,2]
[403145531,1769201442827,-154.396871,0.00019178,2]
[403145532,1769201442838,-154.396871,0.00019178,2]
[403145533,1769201442847,-154.396871,0.00019178,2]
[403145534,1769201442856,-154.396871,0.00019178,2]
[403145536,1769201442864,-154.396865,0.00019178,2]
[403145537,1769201442874,-505.546745,0.00019178,2]
[403145538,1769201442883,-505.546745,0.00019178,2]
[403145540,1769201442894,-505.546745,0.00019178,2]
[403145542,1769201442903,-505.546745,0.00019178,2]
[403145543,1769201442912,-505.546745,0.00019178,2]
[403145544,1769201442921,-505.546745,0.00019178,2]
[403145545,1769201442930,-505.546745,0.00019178,2]
[403145546,1769201442939,-505.546745,0.00019178,2]
[403145548,1769201442948,-505.546745,0.00019178,2]
[403145550,1769201442957,-505.546745,0.00019178,2]
[403145551,1769201442967,-505.546745,0.00019178,2]
[403145552,1769201442976,-505.546745,0.00019178,2]
[403145553,1769201442986,-505.546745,0.00019178,2]
[403145554,1769201442995,-505.546745,0.00019178,2]
[403145555,1769201443004,-505.546745,0.00019178,2]
[403145556,1769201443014,-505.546745,0.00019178,2]
[403145557,1769201443023,-505.546745,0.00019178,2]
[403145558,1769201443032,-505.546745,0.00019178,2]
[403145559,1769201443041,-505.546745,0.00019178,2]
[403145560,1769201443051,-505.546747,0.00019178,2]
[403145561,1769201443060,-151.551054,0.00019178,2]
[403145562,1769201443069,-151.0,0.00019178,2]
[403145564,1769201443078,-151.0,0.00019178,2]
[403145566,1769201443087,-151.0,0.00019178,2]
[403145568,1769201443096,-151.0,0.00019178,2]
[403145570,1769201443105,-151.0,0.00019178,2]
[403145572,1769201443115,-151.0,0.00019178,2]
[403145574,1769201443124,-151.0,0.00019178,2]
[403145575,1769201443133,-151.0,0.00019178,2]
[403145576,1769201443144,-151.0,0.00019178,2]
[403145577,1769201443153,-151.0,0.00019178,2]
[403145578,1769201443162,-284.641838,0.00019178,2]
[403145579,1769201443171,-151.0,0.00019178,2]
[403145580,1769201443180,-151.0,0.00019178,2]
[403145581,1769201443189,-151.0,0.00019178,2]
[403145582,1769201443198,-151.0,0.00019178,2]
[403145583,1769201443207,-151.0,0.00019178,2]
[403145584,1769201443217,-151.0,0.00019178,2]
[403145585,1769201443227,-151.0,0.00019178,2]
[403145586,1769201443236,-151.0,0.00019178,2]
[403145587,1769201443245,-151.0,0.00019178,2]
[403145588,1769201443254,-151.0,0.00019178,2]
[403145589,1769201443263,-151.0,0.00019178,2]
[403145590,1769201443272,-151.0,0.00019178,2]
[403145591,1769201443281,-151.0,0.00019178,2]
[403145592,1769201443290,-245.550852,0.00019178,2]
[403145593,1769201443301,-151.0,0.00019178,2]
[403145594,1769201443310,-151.0,0.00019178,2]
[403145595,1769201443321,-151.0,0.00019178,2]
[403145596,1769201443331,-151.0,0.00019178,2]
[403145597,1769201443342,-151.0,0.00019178,2]
[403145598,1769201443351,-151.0,0.00019178,2]
[403145599,1769201443360,-151.0,0.00019178,2]
[403145600,1769201443369,-151.0,0.00019178,2]
[403145601,1769201443378,-263.824771,0.00019178,2]
[403145602,1769201443387,-151.0,0.000192,2]
[403145603,1769201443397,-730.02930927,0.00019218,7]
[403145604,1769201443406,-264.0,0.00019272,2]
[403145605,1769201443415,-151.0,0.000194,2]
[403145606,1769201443424,-1891.4771762,0.00019405,2]
[403145607,1769201443434,-465.06854837,0.00019415,2]
[403145608,1769201443444,-3442.24,0.0001944,3]
[403145609,1769201443453,-1565.12,0.00019452,2]
[403145610,1769201443461,-264.0,0.00019462,2]
[403145611,1769201443472,-188.545536,0.00019462,7]
[403145612,1769201443486,-264.0,0.0001947,2]
[403145613,1769201443495,-784.598781,0.0001947,7]
[403145614,1769201443504,-541.414108,0.0001947,7]
[403145615,1769201443514,-800.0,0.00019562,2]
[403145616,1769201443523,-264.0,0.0001957,2]
[403145617,1769201443532,-800.0,0.00019599,2]
[403145618,1769201443541,-264.0,0.00019606,2]
[403145619,1769201443551,-264.0,0.00019648,2]
[403145620,1769201443560,-170.287324,0.00019648,7]
[403145621,1769201443569,-800.0,0.00019649,2]
[403145622,1769201443579,-553.64373807,0.00019662,2]
[403145623,1769201443588,-800.0,0.00019689,2]
[403145624,1769201443597,-176.902717,0.00019695,7]
[403145625,1769201443606,-264.0,0.00019696,2]
[403145626,1769201443616,-151.0,0.000197,2]
[403145627,1769201443625,-231.0,0.000197,2]
[403145628,1769201443635,-10326.72,0.000197,3]
[403145629,1769201443646,-800.0,0.00019701,2]
[403145630,1769201443655,-264.0,0.00019723,2]
[403145631,1769201443664,-264.0,0.00019728,2]
[403145632,1769201443673,-264.0,0.00019739,2]
[403145633,1769201443682,-3399.6,0.0001976,3]
[403145634,1769201443691,-1699.8,0.0001976,3]
[403145635,1769201443700,-849.9,0.0001976,3]
[403145636,1769201443710,-424.94,0.0001976,3]
[403145637,1769201443719,-171.988753,0.0001976,7]
[403145638,1769201443728,-264.0,0.00019795,2]
[403145639,1769201443737,-151.0,0.000198,2]
[403145640,1769201443747,-264.0,0.00019804,2]
[403145641,1769201443755,-264.0,0.00019807,2]
[403145642,1769201443857,-3645.75775,0.0001984,7]
[403145643,1769201443867,-2138.433158,0.0001984,7]
[403145644,1769201443876,-1405.24,0.00019853,2]
[403145645,1769201443885,-1405.24,0.00019853,2]
[403145646,1769201443894,-1405.24,0.00019853,2]
[403145647,1769201443903,-1405.24,0.00019853,2]
[403145648,1769201443912,-1405.24,0.00019853,2]
[403145649,1769201443922,-1405.24,0.00019853,2]
[403145650,1769201443931,-1405.24,0.00019853,2]
[403145651,1769201443940,-1405.24,0.00019853,2]
[403145652,1769201443949,-1405.24,0.00019853,2]
[403145653,1769201443958,-1405.24,0.00019853,2]
[403145654,1769201443967,-1405.24,0.00019853,2]
[403145655,1769201443976,-1405.24,0.00019853,2]
[403145656,1769201443986,-1405.24,0.00019853,2]
[403145657,1769201443995,-1405.24,0.00019853,2]
[403145658,1769201444004,-1405.24,0.00019853,2]
[403145659,1769201444014,-1405.24,0.00019853,2]
[403145660,1769201444024,-1405.24,0.00019853,2]
[403145661,1769201444033,-1405.24,0.00019853,2]
[403145662,1769201444041,-1405.24,0.00019853,2]
[403145663,1769201444052,-1405.24,0.00019853,2]
[403145664,1769201444061,-1405.24,0.00019853,2]
[403145665,1769201444071,-1405.24,0.00019853,2]
[403145666,1769201444080,-1405.24,0.00019853,2]
[403145667,1769201444089,-1405.24,0.00019853,2]
[403145668,1769201444098,-1405.24,0.00019853,2]
[403145669,1769201444107,-1405.24,0.00019853,2]
[403145670,1769201444116,-1405.24,0.00019853,2]
[403145671,1769201444126,-1405.24,0.00019853,2]
[403145673,1769201444134,-1405.24,0.00019853,2]
[403145676,1769201444143,-1405.24,0.00019853,2]
[403145677,1769201444152,-1405.24,0.00019853,2]
[403145678,1769201444162,-1405.24,0.00019853,2]
[403145679,1769201444171,-1405.24,0.00019853,2]
[403145680,1769201444180,-1405.24,0.00019853,2]
[403145681,1769201444189,-1405.24,0.00019853,2]
[403145682,1769201444198,-1405.24,0.00019853,2]
[403145683,1769201444207,-1405.24,0.00019853,2]
[403145684,1769201444216,-1405.24,0.00019853,2]
[403145685,1769201444226,-1442.93,0.00019853,2]
[403145686,1769201444235,-264.0,0.00019868,2]
[403145687,1769201444245,-1006.13429983,0.00019891,2]
[403145688,1769201444254,-151.0,0.000199,2]
[403145689,1769201444263,-163.11412483,0.000199,2]
[403145691,1769201444272,-264.0,0.00019946,2]
[403145692,1769201444281,-369488.91490572,0.0002,2]
[403145693,1769201444291,-504.72545899,0.0002,2]
[403145694,1769201444300,-186839.10923853,0.0002,2]
[403145695,1769201444310,-2154.92,0.0002,2]
[403145696,1769201444320,-281.0,0.0002,2]
[403145697,1769201444329,-500.0,0.0002,2]
[403145698,1769201444338,-6172.35,0.0002,2]
[403145700,1769201444347,-500.0,0.0002,2]
[403145701,1769201444356,-1000.0,0.0002,2]
[403145702,1769201444365,-250.0,0.0002,10]
[403145703,1769201444374,-150.0,0.0002,2]
[403145704,1769201444383,-2000.0,0.0002,7]
[403145705,1769201444393,-317.7366431,0.0002,2]
[403145706,1769201444403,-194.5256404,0.0002,2]
[403145708,1769201444412,-194.5256404,0.0002,2]
[403145709,1769201444421,-194.5256404,0.0002,2]
[403145710,1769201444430,-194.5256404,0.0002,2]
[403145711,1769201444439,-603.3135026,0.0002,2]
[403145712,1769201444448,-194.5256404,0.0002,2]
[403145714,1769201444457,-603.3135026,0.0002,2]
[403145715,1769201444467,-194.5256404,0.0002,2]
[403145717,1769201444478,-602.8972406,0.0002,2]
[403145718,1769201444487,-194.5256404,0.0002,2]
[403145719,1769201444497,-305.4129056,0.0002,2]
[403145720,1769201444506,-603.0173475,0.0002,2]
[403145722,1769201444517,-305.4129056,0.0002,2]
[403145724,1769201444526,-413.5495393,0.0002,2]
[403145725,1769201444535,-305.2445645,0.0002,2]
[403145726,1769201444545,-194.5256404,0.0002,2]
[403145727,1769201444555,-185.2080602,0.0002,2]
[403145728,1769201444564,-264.0,0.00020037,2]
[403145729,1769201444574,-264.0,0.00020044,2]
[403145730,1769201444583,-378.19715574,0.00020078,2]
[403145731,1769201444593,-203.980866,0.000201,7]
[403145732,1769201444602,-250.0,0.000201,10]
[403145733,1769201444611,-422.0456052,0.00020164,2]
[403145734,1769201444621,-264.0,0.0002019,2]
[403145735,1769201444630,-151.0,0.000202,4]
[403145736,1769201444640,-5364.146235,0.000202,7]
[403145737,1769201444649,-250.0,0.000202,10]
[403145738,1769201444659,-267.00624049,0.0002021,2]
[403145739,1769201444668,-778.507,0.00020212,2]
[403145740,1769201444678,-2149.0,0.00020212,2]
[403145741,1769201444687,-1368.0,0.00020212,2]
[403145742,1769201444696,-264.0,0.00020215,2]
[403145743,1769201444706,-250.0,0.000203,10]
[403145744,1769201444715,-163.52,0.00020346,2]
[403145745,1769201444724,-190.77,0.00020349,2]
[403145746,1769201444733,-250.0,0.000204,10]
[403145747,1769201444742,-160.54500122,0.00020495,2]
[403145748,1769201444751,-1152.0,0.00020498,2]
[403145749,1769201444760,-151.0,0.000205,3]
[403145751,1769201444770,-250.0,0.000205,10]
[403145752,1769201444779,-204.13,0.00020502,2]
[403145753,1769201444788,-190.77,0.00020526,2]
[403145754,1769201444798,-258.72628965,0.0002053,2]
[403145755,1769201444807,-163.52,0.00020589,2]
[403145756,1769201444816,-250.0,0.000206,10]
[403145757,1769201444825,-151.0,0.000206,2]
[403145758,1769201444835,-151.0,0.000207,4]
[403145759,1769201444844,-250.0,0.000207,10]
[403145760,1769201444853,-250.0,0.000208,10]
[403145761,1769201444863,-185.2080602,0.00020822,2]
[403145762,1769201444873,-185.2080602,0.00020822,2]
[403145763,1769201444883,-1000.0,0.00020822,2]
[403145764,1769201444893,-151.0,0.000209,3]
[403145765,1769201444902,-250.0,0.000209,10]
[403145766,1769201444911,-800.0,0.00021,2]
[403145767,1769201444921,-3000.0,0.00021,2]
[403145768,1769201444930,-151.0,0.00021,4]
[403145769,1769201444939,-38628.300232,0.00021,7]
[403145770,1769201444949,-7663.066048,0.00021,7]
[403145771,1769201444958,-250.0,0.00021,10]
[403145772,1769201444967,-150.0,0.00021,2]
[403145773,1769201444977,-3000.0,0.0002101,2]
[403145774,1769201444986,-3000.0,0.0002102,2]
[403145775,1769201444995,-77694.718685,0.0002102,7]
[403145776,1769201445003,-13089.181533,0.0002102,7]
[403145777,1769201445012,-224.17108,0.00021027,7]